[Event "*** Titled Tuesday Blitz"]
[Site "Chess.com"]
[Date "2018.01.02"]
[Round "1"]
[White "Colombiano07"]
[Black "Blitzstream"]
[Result "0-1"]
[WhiteElo "2194"]
[BlackElo "2493"]
[TimeControl "180+2"]
[EndTime "13:10:37 PST"]
[Termination "Blitzstream won by checkmate"]

1. e4 {[%clk 0:03:01.9]} 1... e5 {[%clk 0:03:00.5]} 2. Nf3 {[%clk 0:03:02.4]}
2... Nf6 {[%clk 0:03:01.8]} 3. d3 {[%clk 0:03:02.7]} 3... d5 {[%clk 0:02:59.7]}
4. Nbd2 {[%clk 0:03:02.7]} 4... Bc5 {[%clk 0:02:54]} 5. Be2 {[%clk 0:02:44]}
5... Bxf2+ {[%clk 0:02:54.4]} 6. Kxf2 {[%clk 0:02:36]} 6... Ng4+ {[%clk
0:02:55.4]} 7. Kg3 {[%clk 0:02:28.3]} 7... Ne3 {[%clk 0:02:24.8]} 8. Qg1 {[%clk
0:02:23.4]} 8... Nxc2 {[%clk 0:02:21.4]} 9. Rb1 {[%clk 0:02:14.5]} 9... O-O
{[%clk 0:02:20.6]} 10. h3 {[%clk 0:02:11]} 10... Nc6 {[%clk 0:02:18.2]} 11. Kh2
{[%clk 0:02:10.6]} 11... f5 {[%clk 0:02:13.4]} 12. Qc5 {[%clk 0:02:06.3]} 12...
N2d4 {[%clk 0:02:06.8]} 13. Qxd5+ {[%clk 0:01:58.6]} 13... Be6 {[%clk
0:01:41.3]} 14. Qxd8 {[%clk 0:01:56.6]} 14... Raxd8 {[%clk 0:01:43.2]} 15. Nxd4
{[%clk 0:01:54.3]} 15... Nxd4 {[%clk 0:01:43.4]} 16. Bd1 {[%clk 0:01:46.7]}
16... f4 {[%clk 0:01:26]} 17. Nf3 {[%clk 0:01:43.7]} 17... Nxf3+ {[%clk
0:01:23.5]} 18. Bxf3 {[%clk 0:01:45.6]} 18... Rxd3 {[%clk 0:01:23.2]} 19. Rd1
{[%clk 0:01:36.1]} 19... Rxd1 {[%clk 0:01:13]} 20. Bxd1 {[%clk 0:01:38]} 20...
Rd8 {[%clk 0:01:14]} 21. Bc2 {[%clk 0:01:25]} 21... Bxa2 {[%clk 0:01:08.1]} 22.
Ra1 {[%clk 0:01:25.7]} 22... Bc4 {[%clk 0:01:09.4]} 23. Rxa7 {[%clk 0:01:16.9]}
23... Ba6 {[%clk 0:01:09.1]} 24. Bb3+ {[%clk 0:01:17.6]} 24... Kf8 {[%clk
0:01:07.5]} 25. Bd5 {[%clk 0:01:18.8]} 25... c6 {[%clk 0:00:55.2]} 26. Bxc6
{[%clk 0:00:50.6]} 26... Rc8 {[%clk 0:00:55.4]} 27. Bxb7 {[%clk 0:00:51.7]}
27... Bxb7 {[%clk 0:00:55.2]} 28. Rxb7 {[%clk 0:00:53.6]} 28... Rxc1 {[%clk
0:00:56.2]} 29. Rb5 {[%clk 0:00:55.2]} 29... Rc2 {[%clk 0:00:47.8]} 30. Rxe5
{[%clk 0:00:55.9]} 30... g6 {[%clk 0:00:47.7]} 31. Kg1 {[%clk 0:00:35.3]} 31...
Rxb2 {[%clk 0:00:45.9]} 32. Ra5 {[%clk 0:00:35.4]} 32... Kg7 {[%clk 0:00:37.1]}
33. Ra6 {[%clk 0:00:34.4]} 33... Re2 {[%clk 0:00:35.9]} 34. Ra4 {[%clk 0:00:32]}
34... Kf6 {[%clk 0:00:35.8]} 35. Kf1 {[%clk 0:00:33.5]} 35... Rb2 {[%clk
0:00:36.5]} 36. Ra7 {[%clk 0:00:32.8]} 36... h5 {[%clk 0:00:32.8]} 37. Ra5
{[%clk 0:00:33.7]} 37... Rb4 {[%clk 0:00:22.1]} 38. e5+ {[%clk 0:00:26.8]} 38...
Kf5 {[%clk 0:00:22.6]} 39. Kf2 {[%clk 0:00:23.7]} 39... Re4 {[%clk 0:00:21.3]}
40. e6+ {[%clk 0:00:22.3]} 40... Kxe6 {[%clk 0:00:21.3]} 41. Kf3 {[%clk
0:00:22.9]} 41... Rb4 {[%clk 0:00:22.5]} 42. h4 {[%clk 0:00:21]} 42... Kf6
{[%clk 0:00:21.8]} 43. Rc5 {[%clk 0:00:21.1]} 43... Ra4 {[%clk 0:00:21.7]} 44.
Rb5 {[%clk 0:00:22.1]} 44... Rc4 {[%clk 0:00:22.6]} 45. Ra5 {[%clk 0:00:23.1]}
45... Rc2 {[%clk 0:00:23.5]} 46. Kxf4 {[%clk 0:00:22.4]} 46... Rxg2 {[%clk
0:00:24.1]} 47. Ra6+ {[%clk 0:00:23.4]} 47... Kg7 {[%clk 0:00:25.4]} 48. Kf3
{[%clk 0:00:08.8]} 48... Rg4 {[%clk 0:00:26.2]} 49. Rb6 {[%clk 0:00:09.1]} 49...
Rxh4 {[%clk 0:00:26.6]} 50. Kg3 {[%clk 0:00:10.2]} 50... Ra4 {[%clk 0:00:27.4]}
51. Kh3 {[%clk 0:00:12.1]} 51... Kh6 {[%clk 0:00:28.3]} 52. Rb3 {[%clk 0:00:13]}
52... Kg5 {[%clk 0:00:27.8]} 53. Rb5+ {[%clk 0:00:13.1]} 53... Kh6 {[%clk
0:00:28.8]} 54. Rb3 {[%clk 0:00:14]} 54... Rf4 {[%clk 0:00:30]} 55. Rc3 {[%clk
0:00:15.1]} 55... Rf6 {[%clk 0:00:31.2]} 56. Ra3 {[%clk 0:00:16.1]} 56... Kg5
{[%clk 0:00:32.4]} 57. Rg3+ {[%clk 0:00:16.2]} 57... Kf5 {[%clk 0:00:33.1]} 58.
Rf3+ {[%clk 0:00:17.3]} 58... Ke6 {[%clk 0:00:34.4]} 59. Re3+ {[%clk 0:00:18.3]}
59... Kf7 {[%clk 0:00:36.1]} 60. Ra3 {[%clk 0:00:19.4]} 60... g5 {[%clk
0:00:36.3]} 61. Rb3 {[%clk 0:00:18.6]} 61... Kg6 {[%clk 0:00:37.7]} 62. Ra3
{[%clk 0:00:19.9]} 62... Kf5 {[%clk 0:00:37.9]} 63. Rf3+ {[%clk 0:00:20.4]}
63... Ke5 {[%clk 0:00:39.1]} 64. Re3+ {[%clk 0:00:21.3]} 64... Kf4 {[%clk
0:00:40.1]} 65. Ra3 {[%clk 0:00:21.3]} 65... Re6 {[%clk 0:00:41.2]} 66. Ra4+
{[%clk 0:00:20.6]} 66... Re4 {[%clk 0:00:42.1]} 67. Ra5 {[%clk 0:00:21.3]} 67...
Re3+ {[%clk 0:00:43.2]} 68. Kg2 {[%clk 0:00:22.4]} 68... Re2+ {[%clk 0:00:42.8]}
69. Kf1 {[%clk 0:00:19.3]} 69... Re5 {[%clk 0:00:43.6]} 70. Ra4+ {[%clk
0:00:19.5]} 70... Kf3 {[%clk 0:00:43]} 71. Kg1 {[%clk 0:00:17.6]} 71... g4
{[%clk 0:00:41]} 72. Kh2 {[%clk 0:00:18]} 72... Re2+ {[%clk 0:00:41.3]} 73. Kh1
{[%clk 0:00:18.6]} 73... Re1+ {[%clk 0:00:42.4]} 74. Kh2 {[%clk 0:00:19.8]}
74... g3+ {[%clk 0:00:44.1]} 75. Kh3 {[%clk 0:00:18.9]} 75... Rh1# {[%clk
0:00:45.6]} 0-1

[Event "*** Titled Tuesday Blitz"]
[Site "Chess.com"]
[Date "2018.01.02"]
[Round "1"]
[White "jposthuma"]
[Black "Kaphrep"]
[Result "0-1"]
[WhiteElo "2356"]
[BlackElo "2644"]
[TimeControl "180+2"]
[EndTime "13:10:57 PST"]
[Termination "Kaphrep won on time"]

1. d4 {[%clk 0:03:01.9]} 1... d5 {[%clk 0:03:00.6]} 2. c4 {[%clk 0:03:02.1]}
2... e6 {[%clk 0:03:01.2]} 3. Nf3 {[%clk 0:03:01.8]} 3... Nf6 {[%clk 0:03:02.1]}
4. g3 {[%clk 0:02:56.9]} 4... Bb4+ {[%clk 0:03:02.4]} 5. Nbd2 {[%clk 0:02:57.5]}
5... dxc4 {[%clk 0:03:02.4]} 6. Bg2 {[%clk 0:02:58.3]} 6... b5 {[%clk
0:03:03.8]} 7. a4 {[%clk 0:02:50.1]} 7... c6 {[%clk 0:02:51.6]} 8. Qc2 {[%clk
0:02:35.1]} 8... Bb7 {[%clk 0:02:39.7]} 9. O-O {[%clk 0:02:32.1]} 9... a5 {[%clk
0:02:36.6]} 10. Ne5 {[%clk 0:02:29.5]} 10... Nd5 {[%clk 0:02:30.7]} 11. e4
{[%clk 0:02:14.7]} 11... Nf6 {[%clk 0:02:27.2]} 12. Ndf3 {[%clk 0:02:05.8]}
12... Nbd7 {[%clk 0:01:58.7]} 13. Nxd7 {[%clk 0:01:04.6]} 13... Nxd7 {[%clk
0:01:56.6]} 14. Bg5 {[%clk 0:00:59.9]} 14... f6 {[%clk 0:01:56.3]} 15. Be3
{[%clk 0:00:50.7]} 15... O-O {[%clk 0:01:53]} 16. e5 {[%clk 0:00:40.6]} 16... f5
{[%clk 0:01:47.3]} 17. b3 {[%clk 0:00:37.6]} 17... Nb6 {[%clk 0:01:45.3]} 18.
Ng5 {[%clk 0:00:32.8]} 18... Qd7 {[%clk 0:01:29.2]} 19. axb5 {[%clk 0:00:30.7]}
19... c3 {[%clk 0:01:30.3]} 20. bxc6 {[%clk 0:00:20.6]} 20... Bxc6 {[%clk
0:01:32.2]} 21. Rfd1 {[%clk 0:00:07]} 21... Bxg2 {[%clk 0:01:29]} 22. Kxg2
{[%clk 0:00:08.9]} 22... Nd5 {[%clk 0:01:28.1]} 23. h4 {[%clk 0:00:05.6]} 23...
h6 {[%clk 0:01:25.1]} 24. Nh3 {[%clk 0:00:06.3]} 24... Qc6 {[%clk 0:01:23.2]}
25. Kg1 {[%clk 0:00:05]} 25... Be7 {[%clk 0:01:20.8]} 26. Nf4 {[%clk 0:00:05.1]}
26... Nb4 {[%clk 0:01:21.3]} 27. Qe2 {[%clk 0:00:05]} 27... Ra6 {[%clk
0:01:08.3]} 28. Ng6 {[%clk 0:00:03.4]} 28... Rf7 {[%clk 0:01:06.8]} 29. Qc4
{[%clk 0:00:03.2]} 29... Kh7 {[%clk 0:00:38]} 30. Nxe7 {[%clk 0:00:03.8]} 30...
Rxe7 {[%clk 0:00:38]} 31. Rdc1 {[%clk 0:00:05.2]} 31... c2 {[%clk 0:00:33.2]}
32. Bd2 {[%clk 0:00:04.6]} 32... Rb7 {[%clk 0:00:19.3]} 33. Bxb4 {[%clk
0:00:04.2]} 33... Rxb4 {[%clk 0:00:20.4]} 34. Qxc2 {[%clk 0:00:04.6]} 34... Qxc2
{[%clk 0:00:19.9]} 35. Rxc2 {[%clk 0:00:06.5]} 35... Rxd4 {[%clk 0:00:21.4]} 36.
Rca2 {[%clk 0:00:07.6]} 36... Rd5 {[%clk 0:00:22.1]} 37. f4 {[%clk 0:00:06.9]}
37... Rb5 {[%clk 0:00:23.1]} 38. Ra3 {[%clk 0:00:06.9]} 38... g5 {[%clk
0:00:23.7]} 39. hxg5 {[%clk 0:00:07]} 39... hxg5 {[%clk 0:00:24.7]} 40. Kf2
{[%clk 0:00:08.3]} 40... Kg6 {[%clk 0:00:25.1]} 41. Ke3 {[%clk 0:00:07.6]} 41...
Kf7 {[%clk 0:00:20.1]} 42. Kd3 {[%clk 0:00:04.6]} 42... Rd5+ {[%clk 0:00:20.2]}
43. Ke3 {[%clk 0:00:05.7]} 43... Rc6 {[%clk 0:00:19.1]} 44. Rxa5 {[%clk
0:00:06.1]} 44... Rc3+ {[%clk 0:00:20.1]} 45. Ke2 {[%clk 0:00:07]} 45... Rxa5
{[%clk 0:00:18.2]} 46. Rxa5 {[%clk 0:00:07.7]} 46... Rxb3 {[%clk 0:00:20.1]} 47.
Kf2 {[%clk 0:00:07.4]} 47... gxf4 {[%clk 0:00:19.3]} 48. gxf4 {[%clk 0:00:09.3]}
48... Rb6 {[%clk 0:00:17.3]} 49. Kg3 {[%clk 0:00:08]} 49... Kg6 {[%clk
0:00:18.5]} 50. Ra3 {[%clk 0:00:07.8]} 50... Kh5 {[%clk 0:00:19.2]} 51. Rd3
{[%clk 0:00:06.3]} 51... Rb4 {[%clk 0:00:18.9]} 52. Rd6 {[%clk 0:00:06.3]} 52...
Rb3+ {[%clk 0:00:20.2]} 53. Kf2 {[%clk 0:00:06.1]} 53... Kg4 {[%clk 0:00:21.6]}
54. Rxe6 {[%clk 0:00:06.9]} 54... Kxf4 {[%clk 0:00:23]} 55. Re8 {[%clk
0:00:07.7]} 55... Rf3+ {[%clk 0:00:24.6]} 56. Kg2 {[%clk 0:00:08]} 56... Rg3+
{[%clk 0:00:26]} 57. Kf2 {[%clk 0:00:09.1]} 57... Rf3+ {[%clk 0:00:27.3]} 58.
Kg2 {[%clk 0:00:10.4]} 58... Re3 {[%clk 0:00:28.6]} 59. e6 {[%clk 0:00:11.2]}
59... Re2+ {[%clk 0:00:29.9]} 60. Kf1 {[%clk 0:00:11]} 60... Kf3 {[%clk
0:00:28.1]} 61. e7 {[%clk 0:00:10.2]} 61... f4 {[%clk 0:00:29.4]} 62. Kg1 {[%clk
0:00:08.9]} 62... Re1+ {[%clk 0:00:30.7]} 63. Kh2 {[%clk 0:00:09.9]} 63... Re2+
{[%clk 0:00:32.3]} 64. Kg1 {[%clk 0:00:10.9]} 64... Re6 {[%clk 0:00:32.5]} 65.
Kf1 {[%clk 0:00:11]} 65... Re5 {[%clk 0:00:30.5]} 66. Kg1 {[%clk 0:00:08.5]}
66... Rg5+ {[%clk 0:00:31.3]} 67. Kf1 {[%clk 0:00:09.3]} 67... Rg7 {[%clk
0:00:31.5]} 68. Ke1 {[%clk 0:00:07.9]} 68... Kg2 {[%clk 0:00:26.5]} 69. Kd2
{[%clk 0:00:02.5]} 69... f3 {[%clk 0:00:27.2]} 70. Ke3 {[%clk 0:00:03.2]} 70...
f2 {[%clk 0:00:28.2]} 0-1

[Event "*** Titled Tuesday Blitz"]
[Site "Chess.com"]
[Date "2018.01.02"]
[Round "1"]
[White "Firebullet"]
[Black "AndrewDGreen"]
[Result "0-1"]
[WhiteElo "2442"]
[BlackElo "2107"]
[TimeControl "180+2"]
[EndTime "13:12:53 PST"]
[Termination "AndrewDGreen won by resignation"]

1. d4 {[%clk 0:02:57.4]} 1... Nf6 {[%clk 0:02:54.7]} 2. c4 {[%clk 0:02:53.9]}
2... c5 {[%clk 0:02:48.9]} 3. d5 {[%clk 0:02:53.7]} 3... e5 {[%clk 0:02:42.2]}
4. Nc3 {[%clk 0:02:53.8]} 4... d6 {[%clk 0:02:39]} 5. e4 {[%clk 0:02:48.8]} 5...
Nbd7 {[%clk 0:02:39]} 6. Nf3 {[%clk 0:01:27.8]} 6... Be7 {[%clk 0:02:37.1]} 7.
h3 {[%clk 0:01:25.9]} 7... h5 {[%clk 0:02:34.9]} 8. Be3 {[%clk 0:01:27.2]} 8...
Nf8 {[%clk 0:02:28.6]} 9. Qd2 {[%clk 0:01:27.9]} 9... h4 {[%clk 0:02:23.5]} 10.
Bd3 {[%clk 0:01:24.6]} 10... Ng6 {[%clk 0:02:23.9]} 11. Bc2 {[%clk 0:01:25.7]}
11... Nh5 {[%clk 0:02:19.8]} 12. Ne2 {[%clk 0:01:22.4]} 12... Bd7 {[%clk
0:02:09.4]} 13. a3 {[%clk 0:01:22.1]} 13... a6 {[%clk 0:02:08]} 14. b4 {[%clk
0:01:22.8]} 14... b6 {[%clk 0:02:08.3]} 15. Rb1 {[%clk 0:01:23.7]} 15... Qc7
{[%clk 0:01:50.1]} 16. Rb2 {[%clk 0:01:17.5]} 16... Kf8 {[%clk 0:01:34.8]} 17.
O-O {[%clk 0:01:16.9]} 17... Kg8 {[%clk 0:01:28.2]} 18. Rfb1 {[%clk 0:01:16.5]}
18... Bc8 {[%clk 0:01:23.8]} 19. Ba4 {[%clk 0:01:12]} 19... Qd8 {[%clk
0:01:16.9]} 20. Bc6 {[%clk 0:01:12]} 20... Ra7 {[%clk 0:01:14]} 21. bxc5 {[%clk
0:01:13]} 21... bxc5 {[%clk 0:01:15.9]} 22. Rb8 {[%clk 0:01:14]} 22... Kh7
{[%clk 0:01:11.8]} 23. R1b2 {[%clk 0:01:05.8]} 23... Qc7 {[%clk 0:01:08.3]} 24.
Qc1 {[%clk 0:01:04.2]} 24... Rd8 {[%clk 0:00:42.1]} 25. Bd2 {[%clk 0:01:04.7]}
25... a5 {[%clk 0:00:39.6]} 26. a4 {[%clk 0:01:05.1]} 26... Ba6 {[%clk
0:00:36.3]} 27. Bb5 {[%clk 0:01:03.9]} 27... Rxb8 {[%clk 0:00:31.5]} 28. Ne1
{[%clk 0:00:41.9]} 28... Bc8 {[%clk 0:00:26.2]} 29. Nd3 {[%clk 0:00:41.3]} 29...
Bd7 {[%clk 0:00:25.2]} 30. Qe1 {[%clk 0:00:40.9]} 30... Bxb5 {[%clk 0:00:21]}
31. axb5 {[%clk 0:00:40.9]} 31... a4 {[%clk 0:00:21.3]} 32. Ra2 {[%clk
0:00:41.2]} 32... Bd8 {[%clk 0:00:20.7]} 33. Qa1 {[%clk 0:00:41.8]} 33... Rba8
{[%clk 0:00:21.2]} 34. Ra3 {[%clk 0:00:42.6]} 34... Qb7 {[%clk 0:00:20]} 35. Be3
{[%clk 0:00:30.8]} 35... Ba5 {[%clk 0:00:17.9]} 36. Rxa4 {[%clk 0:00:29.2]}
36... Bb6 {[%clk 0:00:18.9]} 37. Rxa7 {[%clk 0:00:29]} 37... Qxa7 {[%clk
0:00:18]} 38. Qf1 {[%clk 0:00:26.4]} 38... Qa3 {[%clk 0:00:16.9]} 39. Nec1
{[%clk 0:00:21.7]} 39... Ra4 {[%clk 0:00:14.6]} 40. Qe2 {[%clk 0:00:23]} 40...
Nf6 {[%clk 0:00:13.6]} 41. Qc2 {[%clk 0:00:23]} 41... Nxe4 {[%clk 0:00:11.1]}
42. Nxe5 {[%clk 0:00:23.4]} 42... Nxe5 {[%clk 0:00:07.6]} 43. Qxe4+ {[%clk
0:00:24.3]} 43... Ng6 {[%clk 0:00:09]} 44. g3 {[%clk 0:00:20.1]} 44... Qa1
{[%clk 0:00:07]} 45. Kg2 {[%clk 0:00:20.8]} 45... Qc3 {[%clk 0:00:07.8]} 46.
gxh4 {[%clk 0:00:20.5]} 46... Rxc4 {[%clk 0:00:08.6]} 47. Qf5 {[%clk 0:00:22.2]}
47... Qe5 {[%clk 0:00:06.4]} 48. Qb1 {[%clk 0:00:22.6]} 48... Re4 {[%clk
0:00:05.2]} 49. h5 {[%clk 0:00:22.9]} 49... Nh4+ {[%clk 0:00:05.7]} 50. Kf1
{[%clk 0:00:24.2]} 50... Nf5 {[%clk 0:00:07.3]} 51. Bd2 {[%clk 0:00:22.4]} 51...
Qd4 {[%clk 0:00:05.1]} 52. Qc2 {[%clk 0:00:22.1]} 52... Qc4+ {[%clk 0:00:06.1]}
53. Qxc4 {[%clk 0:00:22.6]} 53... Rxc4 {[%clk 0:00:08]} 54. Ne2 {[%clk
0:00:24.2]} 54... Rc2 {[%clk 0:00:08.3]} 55. Bf4 {[%clk 0:00:25]} 55... c4
{[%clk 0:00:08.4]} 56. Ke1 {[%clk 0:00:24.9]} 56... c3 {[%clk 0:00:08.2]} 57.
Kd1 {[%clk 0:00:26.3]} 57... Rb2 {[%clk 0:00:08]} 58. Nxc3 {[%clk 0:00:27.7]}
58... Rxf2 {[%clk 0:00:09]} 59. Bd2 {[%clk 0:00:27]} 59... Rh2 {[%clk
0:00:09.2]} 60. Na4 {[%clk 0:00:28.3]} 60... Bd4 {[%clk 0:00:06.2]} 61. b6
{[%clk 0:00:29.3]} 61... Rxh3 {[%clk 0:00:07.1]} 62. Kc2 {[%clk 0:00:29.7]}
62... Ne7 {[%clk 0:00:04.5]} 63. b7 {[%clk 0:00:30.6]} 63... Ba7 {[%clk
0:00:04.7]} 64. Nb6 {[%clk 0:00:31.8]} 64... Ra3 {[%clk 0:00:03.5]} 65. Bb4
{[%clk 0:00:30.7]} 65... Ra6 {[%clk 0:00:02.9]} 66. Nc8 {[%clk 0:00:31.1]} 66...
Bb8 {[%clk 0:00:03.6]} 67. Nxe7 {[%clk 0:00:31.8]} 67... Rb6 {[%clk 0:00:03.5]}
68. Nc6 {[%clk 0:00:32.5]} 68... Rxb7 {[%clk 0:00:04.3]} 69. Kd3 {[%clk
0:00:34.1]} 69... Bc7 {[%clk 0:00:04.9]} 70. Ke4 {[%clk 0:00:35.3]} 70... Rb5
{[%clk 0:00:06]} 71. Kd4 {[%clk 0:00:34.5]} 71... Kh6 {[%clk 0:00:06.9]} 72. Kc4
{[%clk 0:00:35.9]} 72... Rb6 {[%clk 0:00:07.6]} 73. Bc3 {[%clk 0:00:36.6]} 73...
f6 {[%clk 0:00:06.5]} 74. Ba5 {[%clk 0:00:34.6]} 74... Rb7 {[%clk 0:00:07.6]}
75. Bb4 {[%clk 0:00:33.9]} 75... Kxh5 {[%clk 0:00:07.7]} 76. Kd4 {[%clk
0:00:35.6]} 76... g5 {[%clk 0:00:08.5]} 77. Ke4 {[%clk 0:00:36.9]} 77... Kg6
{[%clk 0:00:09.1]} 78. Bc3 {[%clk 0:00:37.8]} 78... f5+ {[%clk 0:00:10]} 79. Kd3
{[%clk 0:00:38]} 79... g4 {[%clk 0:00:10.2]} 80. Ne7+ {[%clk 0:00:38.2]} 80...
Kg5 {[%clk 0:00:09.3]} 81. Nc6 {[%clk 0:00:39.3]} 81... f4 {[%clk 0:00:10]} 82.
Nd4 {[%clk 0:00:40.6]} 82... Bb6 {[%clk 0:00:07.4]} 83. Nb5 {[%clk 0:00:38.9]}
83... Bc5 {[%clk 0:00:07.1]} 84. Nd4 {[%clk 0:00:39.4]} 84... Bxd4 {[%clk
0:00:07.5]} 85. Bxd4 {[%clk 0:00:40.7]} 85... Kf5 {[%clk 0:00:08.4]} 86. Bc3
{[%clk 0:00:40]} 86... Rb3 {[%clk 0:00:09.2]} 87. Kc4 {[%clk 0:00:41.2]} 87...
Rxc3+ {[%clk 0:00:10.3]} 0-1

[Event "*** Titled Tuesday Blitz"]
[Site "Chess.com"]
[Date "2018.01.02"]
[Round "1"]
[White "inegrepus"]
[Black "milovanratkovic"]
[Result "0-1"]
[WhiteElo "2119"]
[BlackElo "2465"]
[TimeControl "180+2"]
[EndTime "13:13:39 PST"]
[Termination "milovanratkovic won on time"]

1. d4 {[%clk 0:03:01.8]} 1... d5 {[%clk 0:03:00.4]} 2. c4 {[%clk 0:03:02.5]}
2... dxc4 {[%clk 0:03:02.2]} 3. e4 {[%clk 0:03:02.7]} 3... Nc6 {[%clk
0:03:01.4]} 4. Nf3 {[%clk 0:02:29.8]} 4... Bg4 {[%clk 0:02:50.8]} 5. Bxc4 {[%clk
0:02:28.6]} 5... e6 {[%clk 0:02:47.5]} 6. Be3 {[%clk 0:02:25.2]} 6... Bxf3
{[%clk 0:02:46.9]} 7. gxf3 {[%clk 0:02:23.9]} 7... Qf6 {[%clk 0:02:47.8]} 8. Nc3
{[%clk 0:02:19]} 8... O-O-O {[%clk 0:02:48.3]} 9. Qa4 {[%clk 0:02:19.6]} 9...
Bb4 {[%clk 0:02:40]} 10. Rc1 {[%clk 0:01:45]} 10... Qxf3 {[%clk 0:02:38.3]} 11.
Rg1 {[%clk 0:01:45.7]} 11... Bxc3+ {[%clk 0:02:34.8]} 12. bxc3 {[%clk
0:01:46.3]} 12... Qxe4 {[%clk 0:02:33.8]} 13. Rxg7 {[%clk 0:01:41.7]} 13... Nge7
{[%clk 0:02:29.1]} 14. Rxf7 {[%clk 0:01:36.9]} 14... Rhg8 {[%clk 0:02:27.6]} 15.
Qb3 {[%clk 0:01:28.2]} 15... Kb8 {[%clk 0:02:09.1]} 16. Bxe6 {[%clk 0:01:23.7]}
16... Na5 {[%clk 0:02:03.7]} 17. Rxe7 {[%clk 0:01:09.3]} 17... Nxb3 {[%clk
0:01:47.2]} 18. axb3 {[%clk 0:01:10.4]} 18... Rg1+ {[%clk 0:01:44.2]} 19. Kd2
{[%clk 0:01:11.3]} 19... Rxc1 {[%clk 0:01:41.5]} 20. Kxc1 {[%clk 0:01:12.5]}
20... Qd3 {[%clk 0:01:36.4]} 21. Kb2 {[%clk 0:01:09]} 21... a5 {[%clk
0:01:36.3]} 22. Bc4 {[%clk 0:01:05.1]} 22... Qd1 {[%clk 0:01:35]} 23. Rxh7
{[%clk 0:01:00.9]} 23... a4 {[%clk 0:01:26.5]} 24. Bf4 {[%clk 0:00:54]} 24...
Rc8 {[%clk 0:01:19]} 25. bxa4 {[%clk 0:00:41.9]} 25... Qxa4 {[%clk 0:01:20.9]}
26. Be6 {[%clk 0:00:33]} 26... Qb5+ {[%clk 0:01:17.4]} 27. Bb3 {[%clk
0:00:19.6]} 27... Qe2+ {[%clk 0:01:16.7]} 28. Bc2 {[%clk 0:00:18.5]} 28... Qxf2
{[%clk 0:01:16.1]} 29. Bg3 {[%clk 0:00:19.7]} 29... Qf6 {[%clk 0:01:16]} 30. Kb3
{[%clk 0:00:20.5]} 30... Qb6+ {[%clk 0:01:07.3]} 31. Ka2 {[%clk 0:00:20.9]}
31... Ka8 {[%clk 0:01:07.5]} 32. Bb3 {[%clk 0:00:20.4]} 32... Re8 {[%clk
0:00:58.1]} 33. Bxc7 {[%clk 0:00:17.7]} 33... Re2+ {[%clk 0:00:54.5]} 34. Ka3
{[%clk 0:00:14.9]} 34... Qa6+ {[%clk 0:00:52]} 35. Kb4 {[%clk 0:00:11.3]} 35...
Qf6 {[%clk 0:00:44.9]} 36. Bc4 {[%clk 0:00:10.8]} 36... Rb2+ {[%clk 0:00:27.6]}
37. Ka3 {[%clk 0:00:11.5]} 37... Rb1 {[%clk 0:00:27.8]} 38. Ka2 {[%clk
0:00:11.4]} 38... Re1 {[%clk 0:00:21.5]} 39. Rd7 {[%clk 0:00:11.1]} 39... Re8
{[%clk 0:00:20.5]} 40. Rd6 {[%clk 0:00:11]} 40... Qf2+ {[%clk 0:00:19.6]} 41.
Kb3 {[%clk 0:00:11.9]} 41... Qd2 {[%clk 0:00:19.5]} 42. Rd8+ {[%clk 0:00:11.9]}
42... Rxd8 {[%clk 0:00:19.9]} 43. Bxd8 {[%clk 0:00:13.8]} 43... Qxh2 {[%clk
0:00:20.9]} 44. Bb6 {[%clk 0:00:14.5]} 44... Qd6 {[%clk 0:00:21.4]} 45. Bc5
{[%clk 0:00:15.9]} 45... Qc6 {[%clk 0:00:22.8]} 46. Kb4 {[%clk 0:00:17.1]} 46...
b6 {[%clk 0:00:23.1]} 47. Bf8 {[%clk 0:00:17.3]} 47... Ka7 {[%clk 0:00:24.1]}
48. Kb3 {[%clk 0:00:17.3]} 48... Qh1 {[%clk 0:00:19.3]} 49. Bb4 {[%clk
0:00:18.2]} 49... Qb1+ {[%clk 0:00:18.9]} 50. Ka3 {[%clk 0:00:18.1]} 50... Kb7
{[%clk 0:00:19.9]} 51. d5 {[%clk 0:00:19]} 51... Qd1 {[%clk 0:00:18.5]} 52. d6
{[%clk 0:00:19.5]} 52... Kc6 {[%clk 0:00:18.9]} 53. Kb2 {[%clk 0:00:19.1]} 53...
Qd2+ {[%clk 0:00:18.6]} 54. Ka3 {[%clk 0:00:20.1]} 54... b5 {[%clk 0:00:18.5]}
55. Bb3 {[%clk 0:00:21.4]} 55... Qc1+ {[%clk 0:00:16.7]} 56. Ka2 {[%clk
0:00:22.3]} 56... Kd7 {[%clk 0:00:17.7]} 57. Bg8 {[%clk 0:00:15.3]} 57... Qc2+
{[%clk 0:00:15.4]} 58. Ka3 {[%clk 0:00:15.4]} 58... Qa4+ {[%clk 0:00:15.3]} 59.
Kb2 {[%clk 0:00:16.3]} 59... Qd1 {[%clk 0:00:16.7]} 60. Bb3 {[%clk 0:00:17]}
60... Qd2+ {[%clk 0:00:17.6]} 61. Ka3 {[%clk 0:00:18]} 61... Qc1+ {[%clk
0:00:18]} 62. Ka2 {[%clk 0:00:19]} 62... Qh1 {[%clk 0:00:19.3]} 63. Ka3 {[%clk
0:00:20]} 63... Qa1+ {[%clk 0:00:18.7]} 64. Ba2 {[%clk 0:00:20.9]} 64... Kc6
{[%clk 0:00:19.2]} 65. Kb3 {[%clk 0:00:21.4]} 65... Qc1 {[%clk 0:00:19]} 66. Ba3
{[%clk 0:00:16.3]} 66... Qd1+ {[%clk 0:00:19.9]} 67. Kb2 {[%clk 0:00:17.3]}
67... Qd2+ {[%clk 0:00:20.9]} 68. Kb3 {[%clk 0:00:17.1]} 68... Kb6 {[%clk
0:00:19.7]} 69. Bb4 {[%clk 0:00:17]} 69... Qd1+ {[%clk 0:00:18.2]} 70. Kb2
{[%clk 0:00:18]} 70... Qd2+ {[%clk 0:00:19.3]} 71. Kb3 {[%clk 0:00:19.1]} 71...
Qc1 {[%clk 0:00:20.4]} 72. Ba3 {[%clk 0:00:19.6]} 72... Qf4 {[%clk 0:00:21]} 73.
Bb4 {[%clk 0:00:20.9]} 73... Kc6 {[%clk 0:00:19.4]} 74. Kb2 {[%clk 0:00:21.7]}
74... Qd2+ {[%clk 0:00:18.3]} 75. Kb3 {[%clk 0:00:22.8]} 75... Kd5 {[%clk
0:00:15.3]} 76. Ka3+ {[%clk 0:00:21.8]} 76... Ke4 {[%clk 0:00:15.5]} 77. Bb3
{[%clk 0:00:22.7]} 77... Qc1+ {[%clk 0:00:15.5]} 78. Ka2 {[%clk 0:00:23.9]}
78... Qd2+ {[%clk 0:00:15.9]} 79. Ka3 {[%clk 0:00:25.2]} 79... Kf3 {[%clk
0:00:15.6]} 80. Ba2 {[%clk 0:00:24.2]} 80... Ke2 {[%clk 0:00:14.9]} 81. Bb3
{[%clk 0:00:25.3]} 81... Qc1+ {[%clk 0:00:11.2]} 82. Ka2 {[%clk 0:00:26.5]}
82... Qd2+ {[%clk 0:00:09.9]} 83. Ka3 {[%clk 0:00:26.5]} 83... Kd3 {[%clk
0:00:10.8]} 84. Ba2 {[%clk 0:00:24.6]} 84... Kc2 {[%clk 0:00:11.1]} 85. Bb3+
{[%clk 0:00:24.8]} 85... Kb1 {[%clk 0:00:11.8]} 86. Bc5 {[%clk 0:00:13.6]} 86...
Qxc3 {[%clk 0:00:12.6]} 87. Bb6 {[%clk 0:00:10.7]} 87... b4+ {[%clk 0:00:07]}
88. Ka4 {[%clk 0:00:11.6]} 88... Qc6+ {[%clk 0:00:08.3]} 89. Ka5 {[%clk
0:00:12.1]} 89... Qxd6 {[%clk 0:00:09.2]} 90. Ba4 {[%clk 0:00:13.1]} 90... Ka2
{[%clk 0:00:08.5]} 91. Kb5 {[%clk 0:00:10.9]} 91... b3 {[%clk 0:00:09]} 92. Bc5
{[%clk 0:00:11]} 92... Qd3+ {[%clk 0:00:10.1]} 93. Kb4 {[%clk 0:00:11.4]} 93...
b2 {[%clk 0:00:11.2]} 94. Bb5 {[%clk 0:00:11]} 94... Qa3+ {[%clk 0:00:11.2]} 95.
Kc4 {[%clk 0:00:12]} 95... Qb3+ {[%clk 0:00:12.5]} 96. Kd4 {[%clk 0:00:11.7]}
96... Qxb5 {[%clk 0:00:13.1]} 0-1